Cogmind - Beta 16 @@@ ROGUE MODE // 2025.12.19 @ 15:40:06 Player: Andru7428 Result: Destroyed by as-44809 with Assembled Heavy Rifle Performance ------------- Evolutions (0) 0 Regions Visited (2) 400 Robots Destroyed (24) 120 Value Destroyed (536) 536 Prototype IDs (0) 0 Alien Tech Used (0) 0 Bonus (0) 0 TOTAL SCORE: 1056 Bonus ------- None Cogmind --------- Core Integrity 0/250 Matter 257/300 Energy 250/250 System Corruption 1% Temperature Cool (0) Movement Treading (160) Location -10/Mines Parts ------- > --- POWER (1) -------- Ion Engine > --- PROPULSION (2) --- Light Treads Light Treads > --- UTILITY (2) ------ Large Storage Unit Seismic Detector > --- WEAPON (2) ------- Rocket Launcher > --- INVENTORY (15) --- Light Treads Light Treads Light Treads Light Treads Light Treads Light Treads Heat Sink Large Matter Pod (150) Seismic Detector Targeting Computer Tractor Beam Light Cannon Light Cannon Rocket Launcher Heavy Hammer Peak State ------------ > --- POWER ------------ Ion Engine > --- PROPULSION ------- Light Treads Light Treads > --- UTILITY ---------- Medium Storage Unit Seismic Detector > --- WEAPON ----------- Light Cannon Heavy Hammer > --- INVENTORY -------- Ion Engine Light Treads Light Treads Light Treads Light Treads Targeting Computer Small Laser Light Assault Rifle Light Cannon Rocket Launcher [Rating: 9] Favorites ----------- Power Ion Engine Engine Ion Engine Propulsion Light Treads Treads Light Treads Leg Aluminum Leg Utility Seismic Detector Device Seismic Detector Storage Large Storage Unit Weapon Light Cannon Energy Gun Small Laser Ballistic Gun Light Assault Rifle Ballistic Cannon Light Cannon Launcher Rocket Launcher Impact Weapon Heavy Hammer Build | -11 -10 -10 ------- Run | Yrd Mat Min Slots Evolved . | . . . Power . | . . . Propulsion . | . . . Utility . | . . . Weapon . | . . . Parts Attached 23 | 7 11 5 Power 2 | 1 . 1 Engine 2 | 1 . 1 Core . | . . . Reactor . | . . . Propulsion 6 | 2 3 1 Treads 5 | 2 2 1 Leg 1 | . 1 . Wheel . | . . . Hover . | . . . Flight . | . . . Utility 7 | 2 4 1 Device 3 | 1 1 1 Storage 4 | 1 3 . Processor . | . . . Hackware . | . . . Protection . | . . . Artifact . | . . . Weapon 8 | 2 4 2 Energy Gun 2 | 1 1 . Energy Cannon . | . . . Ballistic Gun 1 | 1 . . Ballistic Cannon 2 | . 2 . Launcher 2 | . . 2 Special Weapon . | . . . Impact Weapon 1 | . 1 . Slashing Weapon . | . . . Piercing Weapon . | . . . Special Melee Weapon . | . . . Unidentified Prototypes . | . . . Parts Lost 5 | . 2 3 Power 1 | . . 1 Propulsion . | . . . Utility 2 | . 1 1 Weapon 2 | . 1 1 Highest Loss Streak 2 | . 2 1 To Critical Strikes . | . . . Average Backups 11 | 4 9 14 Power . | . 1 . Propulsion 4 | 2 4 6 Utility 2 | . 1 4 Weapon 2 | 1 2 3 Tool/Special . | . . . Unused Backups 16 | . 5 11 Power . | . . . Propulsion 10 | . 4 6 Utility 4 | . . 4 Weapon 2 | . 1 1 Tool/Special . | . . . Average Slot Usage (%) 97 | . 97 97 Engine 14 | . 14 14 Treads 28 | . 28 28 Device 11 | . 11 11 Storage 14 | . 14 14 Energy Gun 4 | . 6 . Ballistic Gun 4 | . 6 . Ballistic Cannon 16 | . 9 26 Impact Weapon 2 | . 4 . Peak Build Rating 9 | 7 9 9 Average Rating 7 | 4 8 7 On Entrance 5 | . 7 8 Avg Prop Armor Cover (%) . | . . . Naked Turns . | . . . Heaviest Build 33 | 14 32 33 Greatest Support 40 | 40 40 40 Greatest Overweight (x) . | . . . Average Overweight (x) . | . . . Largest Inventory Capacity 15 | 8 15 15 Average Capacity 11 | 7 10 15 Most Carried 15 | 8 15 15 Average Carried 11 | 4 9 14 Final Capacity 15 | 8 15 15 Final Carried 15 | 6 15 15 Class Distribution -------------------- 100% | Mutant Dominant Class ---------------- Mutant | -10/Materials Mutant | -10/Mines Resources | -11 -10 -10 ----------- Run | Yrd Mat Min Matter Collected 1179 | 275 417 487 Remotely . | . . . Salvage Created 787 | 100 577 110 Parts 48 | 5 40 3 Haulers Intercepted 2 | . 2 . Recyclers Shooed 1 | 1 . . Parts Field Recycled . | . . . Retrieved Matter . | . . . Parts Self-Destructed . | . . . Prevented . | . . . Parts Restored . | . . . Kills | -11 -10 -10 ------- Run | Yrd Mat Min Combat Hostiles Destroyed 28 | . 11 17 Melee 1 | . 1 . Guns 6 | . 6 . Cannons 17 | . 4 13 AOE 4 | . . 4 Classes Destroyed 8 | 2 5 1 Worker 2 | . 2 . Tunneler 3 | 1 2 . Hauler 2 | . 2 . Recycler 1 | 1 . . Watcher 1 | . 1 . Swarmer 3 | . 1 2 Grunt 12 | . 10 2 Assembled 13 | . . 13 Best Kill Streak 5 | 2 5 4 Combat Bots Only 5 | . 5 4 Max Kills in Single Turn 2 | 1 1 2 Gunslinging . | . . . Exploded 2 | . . 2 Melee 1 | . 1 . Uniques/NPCs Destroyed . | . . . Combat | -11 -10 -10 -------- Run | Yrd Mat Min Hostile Shots Fired 146 | . 67 79 Missed 39 | . 17 22 Hits 107 | . 50 57 Melee 2 | . . 2 Projectile 105 | . 50 55 Critical Strikes 2 | . 2 . Damage Taken 1291 | . 568 723 Core 250 | . 111 139 Absorbed by Shields . | . . . Core Remaining (%) 100 | 100 . . Volleys Fired 93 | 5 42 46 Largest 2 | 2 2 2 Hottest 70 | 70 70 60 Shots Fired 173 | 10 82 81 Gun 66 | 10 56 . Cannon 98 | . 26 72 Launcher 9 | . . 9 Special . | . . . Kinetic 131 | 5 54 72 Thermal 33 | 5 28 . Explosive 9 | . . 9 Electromagnetic . | . . . Robot Hit Streak 14 | 2 14 10 Robot Miss Streak 5 | 2 5 3 Penetration Max . | . . . Secondary Targets 1 | . 1 . Max Gunslinging Chain 1 | . 1 . Shots Hit Robots 113 | 4 64 45 Core Hits 55 | 3 24 28 Critical Kills . | . . . Critical Parts Destroyed 2 | . 2 . Critical Strikes 3 | . 2 1 Blast 1 | . . 1 Smash 2 | . 2 . Melee Attacks 10 | . 10 . Impact 10 | . 10 . Slashing . | . . . Piercing . | . . . Sneak Attacks 5 | . 5 . Combat Hostiles . | . . . Follow-up Attacks . | . . . Damage Inflicted 2373 | 46 1125 1202 Guns 475 | 46 429 . Cannons 986 | . 245 741 Explosions 455 | . . 455 Melee 448 | . 448 . Ramming 9 | . 3 6 Kinetic 1161 | 8 412 741 Thermal 300 | 38 262 . Explosive 455 | . . 455 Electromagnetic . | . . . Impact 448 | . 448 . Slashing . | . . . Piercing . | . . . Highest Corruption 1 | . 1 1 Average Corruption 1 | . 1 1 Corruption Purged . | . . . Corruption Blocked . | . . . Effects 20 | . 8 12 Message Errors 4 | . 1 3 Matter Fused 4 | . 1 3 Heat Flow Errors 3 | . 1 2 Energy Discharges 2 | . 1 1 Parts Rejected 1 | . . 1 Data Loss (minor) 4 | . 4 . Weapon Failures 2 | . . 2 Overload Shots . | . . . Overflow Damage 219 | . 205 14 Projectiles . | . . . Explosions 14 | . . 14 Melee 205 | . 205 . Knockbacks 18 | . 7 11 Impact . | . . . Kinetic 16 | . 5 11 Secondary 2 | . 2 . Self-Inflicted Damage 20 | . . 20 Shots 1 | . . 1 Rammed 2 | . 1 1 Targets Rammed 2 | . 1 1 Kicked . | . . . Crushed . | . . . Highest Temperature 261 | 70 214 261 Average Temperature 75 | 32 78 84 Received Heat Transfer 426 | . 333 93 Siege Activations . | . . . Martial Activations . | . . . Shielding Activations . | . . . Robots Disrupted . | . . . Combat Hostiles . | . . . Robots Corrupted . | . . . Combat Hostiles . | . . . Parts Fried 2 | . 2 . Impact Corruptions 6 | . 6 . Robots Melted . | . . . Combat Hostiles . | . . . Parts Melted 2 | . 2 . Heat Transferred 865 | 111 754 . Parts Sabotaged . | . . . Parts Stolen . | . . . Parts Stripped . | . . . Power Chain Reactions . | . . . Alert | -11 -10 -10 ------- Run | Yrd Mat Min Maximum Alert Level . | . . . Low Security (%) 100 | 100 100 100 Level 1 . | . . . Level 2 . | . . . Level 3 . | . . . Level 4 . | . . . Level 5 . | . . . High Security . | . . . Max Security . | . . . Peak Influence 80 | 10 80 65 Initial 6 | . . 6 Average 10 | . 14 7 Influence Increases 481 | 10 329 142 Destroy 0b10 Robot/C 300 | . 220 80 Destroy 0b10 Robot/NC 45 | 10 35 . Destroy Leader 66 | . 56 10 Successful Hack 13 | . 13 . Disable Machine 15 | . . 15 Destroy Structure 42 | . 5 37 Influence Decreases 475 | 10 311 154 Entered New Map 12 | . . 12 Time Decay 437 | 10 291 136 Lost Part 26 | . 20 6 Squads Dispatched 4 | . 4 . Investigation 3 | . 3 . Extermination . | . . . Reinforcement 1 | . 1 . Assault . | . . . Garrison . | . . . Intercept . | . . . Searches Triggered . | . . . Construction Impeded . | . . . Haulers Reinforced . | . . . Active Scanning Responses . | . . . Cargo Convoy Interrupts . | . . . Stealth | -11 -10 -10 --------- Run | Yrd Mat Min Distress Signals 2 | . 2 . Communications Jammed . | . . . Distress Signals . | . . . Times Spotted 41 | . 21 20 Peak Tracking Total 5 | . 5 3 Tactical Retreats 2 | . . 2 Traps | -11 -10 -10 ------- Run | Yrd Mat Min Traps Triggered 3 | . 3 . Indirectly . | . . . Trap Hack Attempts . | . . . Triggered . | . . . Disarmed . | . . . Reprogrammed . | . . . Reused . | . . . Traps Extracted . | . . . Installed . | . . . Triggered . | . . . Machines | -11 -10 -10 ---------- Run | Yrd Mat Min Machines Disabled 1 | . . 1 Max in Single Turn 1 | . . 1 Machines Repaired . | . . . Machines Dismantled . | . . . Machines Sabotaged . | . . . Overloaded Fab Kills . | . . . Hacking | -11 -10 -10 --------- Run | Yrd Mat Min Machines Accessed 7 | . 7 . Terminals 7 | . 7 . Fabricators . | . . . Repair Stations . | . . . Recycling Units . | . . . Scanalyzers . | . . . Garrison Access . | . . . Total Hacks 20 | . 20 . Successful 10 | . 10 . Failed 10 | . 10 . Catastrophic 1 | . 1 . Database Lockouts . | . . . Manual 14 | . 14 . Terminals 20 | . 20 . Fabricators . | . . . Repair Stations . | . . . Recycling Units . | . . . Scanalyzers . | . . . Garrison Access . | . . . Terminal Hacks 1 | . 1 . Locate Traps 1 | . 1 . Fabricator Hacks . | . . . Repair Station Hacks . | . . . Recycling Unit Hacks . | . . . Scanalyzer . | . . . Garrison Access Hacks . | . . . Unauthorized Hacks 9 | . 9 . Terminals 9 | . 9 . Botnet 2 | . 2 . Skim 7 | . 7 . Fabricators . | . . . Repair Stations . | . . . Recycling Units . | . . . Scanalyzers . | . . . Garrison Access . | . . . Data Cores Recovered . | . . . Used . | . . . Hacking Detections 6 | . 6 . Full Trace Events 1 | . 1 . Feedback Events . | . . . Feedback Blocked . | . . . Robot Schematics Acquired . | . . . Robots Built . | . . . Authchips . | . . . Time . | . . . Total Robot Build Rating . | . . . Part Schematics Acquired . | . . . Parts Built . | . . . Authchips . | . . . Time . | . . . Total Part Build Rating . | . . . Part Studies Acquired . | . . . Parts Repaired . | . . . Time . | . . . Parts Recycled . | . . . Recycled Matter . | . . . Retrieved Matter . | . . . Retrieved Components . | . . . Parts Scanalyzed . | . . . Part Schematics Acquired . | . . . Parts Damaged . | . . . Bothacking | -11 -10 -10 ------------ Run | Yrd Mat Min Used RIF Installer . | . . . Robots Hacked . | . . . Non-combat . | . . . Combat . | . . . Robot Hacks Applied . | . . . Relay Couplers Released . | . . . Fabnet Peak Effective % . | . . . Robots Rewired . | . . . Allies Hacked . | . . . Hacks Repelled . | . . . Allies | -11 -10 -10 -------- Run | Yrd Mat Min Total Allies . | . . . Largest Group . | . . . Highest-Rated Group . | . . . Highest-Rated Ally . | . . . Total Orders . | . . . Ally Attacks . | . . . Total Damage . | . . . Kills . | . . . Allies Corrupted . | . . . Allies Melted . | . . . Intel | -11 -10 -10 ------- Run | Yrd Mat Min Active Infowar (turns) 2012 | 45 1196 771 Seismic 2012 | 45 1196 771 Robot Analysis Total . | . . . Derelict Logs Recovered 1 | . . 1 Drone Launches . | . . . Drone Recoveries . | . . . Exploration | -11 -10 -10 ------------- Run | Yrd Mat Min Turns Passed 2493 | 127 1442 924 Spaces Moved 1171 | 59 749 363 Core 1 | 1 . . Treads 1170 | 58 749 363 Legs . | . . . Wheels . | . . . Hover . | . . . Flight . | . . . Fastest Speed 50 | 50 160 160 Average Speed 159 | 158 160 160 Slowest Speed 160 | 160 160 160 Overloaded Moves . | . . . Propulsion Burnouts . | . . . Robots Hopped . | . . . Potential Cave-ins . | . . . Cave-ins Triggered . | . . . Exploration Rate (%) 52 | 6 96 55 Regions Visited 2 Branch Regions 1 Pre-discovered Areas 1 | . . 1 Known Exits Taken . | . . . Unknown Exits Taken 2 | 1 1 . Scrap Searched 1 | . . 1 Spaces Dug 3 | . 3 . Terrain Destroyed 71 | . 3 68 Melee 3 | . 3 . Projectile 2 | . . 2 AOE 66 | . . 66 Terrain Rammed . | . . . Walls Destroyed . | . . . Machines Disabled . | . . . Actions | -11 -10 -10 --------- Run | Yrd Mat Min Total 1602 | 82 899 621 Wait 249 | 3 50 196 Move 1169 | 58 748 363 Hop . | . . . Pick Up 30 | 9 19 2 Fast Attach 7 | 4 1 2 Attach 5 | 3 1 1 Detach . | . . . Swap 22 | . 15 7 Drop 15 | . 12 3 Fire 93 | 5 42 46 Melee 10 | . 10 . Ram . | . . . Kick . | . . . Crush 2 | . 1 1 Escape Stasis . | . . . Rewire . | . . . Trap . | . . . Miscellaneous . | . . . Route ------- -11/Scrapyard -10/Materials (discovered 6 exits: *Mat x3 / [*Min x2] / Sub) -10/Mines (discovered 2 exits: *Mat x2) History --------- Turn | Location | Event 25 | -11/Scrapyard | Discovered new exit (range 14) 128 | -11/Scrapyard | Entered Materials 313 | -10/Materials | Build established: Mutant 550 | -10/Materials | Discovered new exit (range 16) 793 | -10/Materials | Discovered new exit (range 16) 913 | -10/Materials | Discovered new exit (range 5) 1054 | -10/Materials | Discovered new exit (range 11) 1280 | -10/Materials | Discovered new exit (range 8) 1311 | -10/Materials | Learned 4 Subcaves zone layouts 1400 | -10/Materials | Learned 2 Mines zone layouts 1430 | -10/Materials | Identified exit to Subcaves 1452 | -10/Materials | Loaded intel: 8 terminal locations 1466 | -10/Materials | Learned 4 Recycling zone layouts 1470 | -10/Materials | Loaded intel: 38 machine locations 1507 | -10/Materials | Learned 2 Storage zone layouts 1542 | -10/Materials | Learned Materials stockpile data 1570 | -10/Materials | Entered Mines 1571 | -10/Mines | Identified exit to Materials 1572 | -10/Mines | Core integrity fell below 50% 1722 | -10/Mines | Discovered exit to Materials (range 15) 1923 | -10/Mines | Assembled infested the area 1928 | -10/Mines | Assisted by a Guerilla fighting off Assembled 2367 | -10/Mines | Core integrity fell below 20% 2452 | -10/Mines | Learned location of Storage (-8) 2494 | -10/Mines | Destroyed by as-44809 with Assembled Heavy Rifle Last Messages --------------- 02404_ Acquired 61 matter. 02415_ as-29214 knocked back. 02424_ as-29214 destroyed. 02427_ as-57907 destroyed. 02432_ Acquired 3 matter. 02435_ Acquired 30 matter. 02440_ Extracted 15 matter. 02452_ A derelict emerges from the shadows: "Are any of them following you? I'm here trying to lose some heat after our second raid on Storage failed. Whatever you do stay away from that place, they've tightened security following our previous successful raids." World map updated: -8/Storage. 02454_ W0-TGG(g): "We scattered so the Unaware couldn't effectively use their advantage in numbers, and I suggest you do the same." 02454_ W0-TGG(g) slips back into the shadows. 02468_ JWQ7FGHLCJON:2BK 6RPTIOA 02487_ Lgt. Cannon destroyed. Map ----- +----------------------------------------------------+ | | | | | | | | | | | ???????????????????????????????????????? | | ???????????????????????????????????????? | | ???????????????????????????????????????? | | ???????????????????????????????????????? | | ?????##??????????####????#####?????????? | | ????## ##???????## ###### ##????????# | | ????# #????#### ## ###?????## | | ???## #???## ####### | | ???# #???# " # | | ???# #???# = | | ???# #?????# || | | ???## #?????## ! ! # | | ????## #?????## # # ### = ### | | ?????# #?????# # #?######### | | ?????# #?????# ## ## ##??##?????? | | ?????# #?????# #########??????????? | | ?????# #####?## | ##??????????????????? | | ?????# #??#==##???????????????????? | | ?????###### #?## %#????????????????????? | | ??????????# ### #????????????????????? | | ??????????# !%@ ##????????????????????? | | ??????????####= !#??????????? ?????????? | | ?????????????#%= ##??????? !%*????????? | | ?????????????##!*%##???!%! %%=?????????? | | ?????????????## ##%% = #???????????? | | ????????????## % #????????????? | | ????????????# ####?????????????? | | ????????????# ##????????????????? | | ????????????## #?????????????????? | | ?????????????# #?????????????????? | | ?????????????? a #?????????????????? | | ?????????????? #?????????????????? | | ?????????????? % ##?????????????????? | | ?????????????? ! #??##??????????????? | | ?????????????? a% #??## ??????????????? | | ??????????######%*#?### ??????????????? | | ??????????# =!### ??????????????? | | ??????????# ## ??????????????? | | ??????????# ####### ??????????????? | | ??????????# ###??## ??????????????? | | ?????????## #### ??????????????? | | ?????????# ## ??????????????? | | ?????????# """??????????????? | | ?????????# """??????????????? | | ?????????## """??????????????? | +----------------------------------------------------+ Best States ------------- Heat Dissipation 25 Energy Generation 10 Energy Capacity 250 Matter Stores 300 Matter Capacity 450 Sight Range 16 Terrain Scan Density 10 Evasion (%) 40 Recoil Reduction 2 Item Schematics ----------------- None Robot Schematics ------------------ None Fabricated ------------ Nothing Repaired ---------- Nothing Studied --------- None Alien Tech Used ----------------- None Achievements -------------- None Challenges ------------ None Game ------ Seed LatentMobileMask Manual? 0 Play Time 00:14:49 Cumulative 423.6 hours Start 2025.12.19 @ 15:27:02 End 2025.12.19 @ 15:40:06 Sessions 1 Manual Loads 0 Difficulty Rogue Special Mode None Game No. 257 Rogue 257 Adventurer 0 Explorer 0 Win Type - Total 12 Types 11/0/1/0/0/0/0/0/0/0 Lore% 80 Gallery% 76 Achievement% 53 Wizard Run 0 Options --------- Layout 1 ASCII 0 Keyboard 1 Movement Numpad Keybinds 0 Fullscreen 2 Font 24/Smallcaps Map View 50x35 Zoom Use 0% Tactical HUD 1 Map Filters NONE Filters NONE Steam 1 RUN: de1b3e7a-60c9-4978-95ee-ba8abcb0f091